[Event "Betsys MČR v online bleskovém šachu 2021"]
[Site "Chess.com"]
[Date "2021.04.17"]
[Round "9"]
[White "Bagr92"]
[Black "kominekmart"]
[Result "1-0"]
[WhiteElo "1563"]
[BlackElo "1560"]
[TimeControl "180+1"]
[EndTime "10:30:11 PDT"]
[Termination "Uživatel Bagr92 zvítězil na čas"]

1. e4 {[%clk 0:03:00.9]} 1... d6 {[%clk 0:02:59.8]} 2. Nc3 {[%clk 0:03:00.4]}
2... g6 {[%clk 0:02:59.4]} 3. d4 {[%clk 0:03:01.3]} 3... Nf6 {[%clk 0:02:58]} 4.
Be3 {[%clk 0:03:02.2]} 4... Bg7 {[%clk 0:02:57.7]} 5. f4 {[%clk 0:03:02.4]} 5...
O-O {[%clk 0:02:57.2]} 6. Nf3 {[%clk 0:03:03.3]} 6... c5 {[%clk 0:02:55.6]} 7.
d5 {[%clk 0:02:59.2]} 7... a6 {[%clk 0:02:48.8]} 8. a4 {[%clk 0:02:54.7]} 8...
Qb6 {[%clk 0:02:41.6]} 9. b3 {[%clk 0:02:49.9]} 9... Ng4 {[%clk 0:02:38.9]} 10.
Bg1 {[%clk 0:02:42.5]} 10... Bxc3+ {[%clk 0:02:26.8]} 11. Ke2 {[%clk 0:02:40.4]}
11... Bxa1 {[%clk 0:02:21.7]} 12. Qxa1 {[%clk 0:02:37.5]} 12... Nf6 {[%clk
0:02:19.7]} 13. e5 {[%clk 0:02:32]} 13... Nxd5 {[%clk 0:02:08.9]} 14. c4 {[%clk
0:02:25.8]} 14... Nxf4+ {[%clk 0:02:07.5]} 15. Ke1 {[%clk 0:02:24.5]} 15... Qxb3
{[%clk 0:02:00.8]} 16. Be3 {[%clk 0:02:18.9]} 16... Nd3+ {[%clk 0:01:53.2]} 17.
Ke2 {[%clk 0:02:15.9]} 17... Qc2+ {[%clk 0:01:45.9]} 18. Bd2 {[%clk 0:02:06.9]}
18... Nf4+ {[%clk 0:01:33.8]} 19. Ke3 {[%clk 0:01:58.3]} 19... Nh5 {[%clk
0:01:22.2]} 20. Bd3 {[%clk 0:01:42.3]} 20... Qb3 {[%clk 0:01:00.4]} 21. Rb1
{[%clk 0:01:40.8]} 21... Qxb1 {[%clk 0:00:54.9]} 22. Qxb1 {[%clk 0:01:41.7]}
22... Nc6 {[%clk 0:00:53.8]} 23. exd6 {[%clk 0:01:37.7]} 23... exd6 {[%clk
0:00:53.2]} 24. h3 {[%clk 0:01:34.6]} 24... Re8+ {[%clk 0:00:52.5]} 25. Kf2
{[%clk 0:01:32.8]} 25... Nd4 {[%clk 0:00:45.5]} 26. Nxd4 {[%clk 0:01:32.5]}
26... cxd4 {[%clk 0:00:45.1]} 27. g4 {[%clk 0:01:30.7]} 27... Ng7 {[%clk
0:00:43.6]} 28. Qb2 {[%clk 0:01:24.3]} 28... Rb8 {[%clk 0:00:42]} 29. Qxd4
{[%clk 0:01:23.2]} 29... Bd7 {[%clk 0:00:41.4]} 30. Bc3 {[%clk 0:01:23.2]} 30...
f6 {[%clk 0:00:29.3]} 31. Kg1 {[%clk 0:01:13.9]} 31... Re6 {[%clk 0:00:22.4]}
32. c5 {[%clk 0:01:10.4]} 32... Bc6 {[%clk 0:00:18.4]} 33. cxd6 {[%clk
0:01:03.4]} 33... Rd8 {[%clk 0:00:17.9]} 34. Bc4 {[%clk 0:01:02.8]} 34... Rxd6
{[%clk 0:00:10.5]} 35. Bxe6+ {[%clk 0:01:02]} 35... Rxe6 {[%clk 0:00:10.2]} 36.
g5 {[%clk 0:00:53.5]} 36... Re8 {[%clk 0:00:03.4]} 37. gxf6 {[%clk 0:00:51.6]}
1-0

[Event "Betsys MČR v online bleskovém šachu 2021"]
[Site "Chess.com"]
[Date "2021.04.17"]
[Round "9"]
[White "Z_u_z_i"]
[Black "ikovacs"]
[Result "1-0"]
[WhiteElo "1540"]
[BlackElo "1075"]
[TimeControl "180+1"]
[EndTime "10:30:12 PDT"]
[Termination "Uživatel Z_u_z_i zvítězil matem"]

1. e4 {[%clk 0:03:00.9]} 1... e5 {[%clk 0:02:40.9]} 2. Nf3 {[%clk 0:02:54.6]}
2... d6 {[%clk 0:02:38.4]} 3. Bc4 {[%clk 0:02:53.3]} 3... Nc6 {[%clk 0:02:33.4]}
4. O-O {[%clk 0:02:52.3]} 4... Bg4 {[%clk 0:02:31.4]} 5. c3 {[%clk 0:02:46.8]}
5... g6 {[%clk 0:02:26.6]} 6. h3 {[%clk 0:02:45.4]} 6... Bxf3 {[%clk 0:02:25.3]}
7. Qxf3 {[%clk 0:02:44.3]} 7... Nf6 {[%clk 0:02:25.8]} 8. d3 {[%clk 0:02:32.2]}
8... Bg7 {[%clk 0:02:25.8]} 9. Bg5 {[%clk 0:02:28.1]} 9... O-O {[%clk 0:02:24]}
10. Nd2 {[%clk 0:02:24]} 10... a6 {[%clk 0:02:16.1]} 11. a4 {[%clk 0:02:20]}
11... Rb8 {[%clk 0:02:07.3]} 12. Nb3 {[%clk 0:02:15.1]} 12... h6 {[%clk
0:02:00]} 13. Bh4 {[%clk 0:02:08.4]} 13... g5 {[%clk 0:01:59.2]} 14. Bg3 {[%clk
0:02:08.3]} 14... Nd7 {[%clk 0:01:50.1]} 15. d4 {[%clk 0:02:02.7]} 15... exd4
{[%clk 0:01:42.9]} 16. cxd4 {[%clk 0:02:02.1]} 16... Nxd4 {[%clk 0:01:37.9]} 17.
Nxd4 {[%clk 0:02:01]} 17... Bxd4 {[%clk 0:01:37.4]} 18. Rab1 {[%clk 0:01:55]}
18... Be5 {[%clk 0:01:36.6]} 19. Rfd1 {[%clk 0:01:41.8]} 19... Bxg3 {[%clk
0:01:33.5]} 20. Qxg3 {[%clk 0:01:40.9]} 20... Ne5 {[%clk 0:01:32.9]} 21. Ba2
{[%clk 0:01:25.8]} 21... a5 {[%clk 0:01:31.6]} 22. f4 {[%clk 0:01:20.5]} 22...
Ng6 {[%clk 0:01:22.1]} 23. f5 {[%clk 0:01:08.6]} 23... Nh4 {[%clk 0:01:14]} 24.
e5 {[%clk 0:01:00.1]} 24... Nxf5 {[%clk 0:01:05]} 25. Qg4 {[%clk 0:00:53.5]}
25... Qd7 {[%clk 0:00:57.6]} 26. exd6 {[%clk 0:00:44.5]} 26... cxd6 {[%clk
0:00:55.9]} 27. Qf3 {[%clk 0:00:27.5]} 27... b6 {[%clk 0:00:47.6]} 28. Rbc1
{[%clk 0:00:19.9]} 28... Nh4 {[%clk 0:00:40.6]} 29. Qd3 {[%clk 0:00:15.8]} 29...
Qxa4 {[%clk 0:00:36.6]} 30. Bb3 {[%clk 0:00:13]} 30... Qb4 {[%clk 0:00:30.6]}
31. Bc2 {[%clk 0:00:10.7]} 31... Qc5+ {[%clk 0:00:27.9]} 32. Kh1 {[%clk
0:00:08.6]} 32... Qc6 {[%clk 0:00:27.1]} 33. Qh7# {[%clk 0:00:07.9]} 1-0

[Event "Betsys MČR v online bleskovém šachu 2021"]
[Site "Chess.com"]
[Date "2021.04.17"]
[Round "9"]
[White "Tah_na_g12"]
[Black "pudltomik"]
[Result "1/2-1/2"]
[WhiteElo "1172"]
[BlackElo "773"]
[TimeControl "180+1"]
[EndTime "10:30:14 PDT"]
[Termination "Remíza opakováním pozice"]

1. e4 {[%clk 0:03:00.9]} 1... e6 {[%clk 0:02:59]} 2. d4 {[%clk 0:02:56.9]} 2...
d5 {[%clk 0:02:55.7]} 3. e5 {[%clk 0:02:54.4]} 3... Nc6 {[%clk 0:02:52]} 4. Nf3
{[%clk 0:02:52.8]} 4... Be7 {[%clk 0:02:47.5]} 5. Bb5 {[%clk 0:02:46.6]} 5...
Bd7 {[%clk 0:02:45.7]} 6. Nc3 {[%clk 0:02:43.4]} 6... Nb4 {[%clk 0:02:43.9]} 7.
Bxd7+ {[%clk 0:02:35.3]} 7... Qxd7 {[%clk 0:02:43.3]} 8. a3 {[%clk 0:02:36.1]}
8... Nc6 {[%clk 0:02:40.1]} 9. O-O {[%clk 0:02:30]} 9... O-O-O {[%clk
0:02:39.2]} 10. b4 {[%clk 0:02:27]} 10... b6 {[%clk 0:02:36.2]} 11. b5 {[%clk
0:02:25.6]} 11... Na5 {[%clk 0:02:35.5]} 12. Bd2 {[%clk 0:02:15.4]} 12... Nc4
{[%clk 0:02:34.5]} 13. Qe2 {[%clk 0:02:11.2]} 13... h6 {[%clk 0:02:29]} 14. a4
{[%clk 0:02:06.1]} 14... f6 {[%clk 0:02:19.1]} 15. exf6 {[%clk 0:02:02.9]} 15...
Nxf6 {[%clk 0:02:18.7]} 16. Rfb1 {[%clk 0:02:00.5]} 16... Ng4 {[%clk 0:02:15]}
17. h3 {[%clk 0:01:58.5]} 17... Nf6 {[%clk 0:02:08.4]} 18. Nd1 {[%clk 0:01:49]}
18... h5 {[%clk 0:02:07.3]} 19. a5 {[%clk 0:01:48.2]} 19... bxa5 {[%clk
0:02:04.8]} 20. Bxa5 {[%clk 0:01:47.5]} 20... Nxa5 {[%clk 0:02:03.4]} 21. Rxa5
{[%clk 0:01:45.5]} 21... Kb7 {[%clk 0:01:50.5]} 22. Nc3 {[%clk 0:01:40.3]} 22...
Bd6 {[%clk 0:01:42.2]} 23. Ra6 {[%clk 0:01:38.9]} 23... e5 {[%clk 0:01:32.1]}
24. dxe5 {[%clk 0:01:36]} 24... Bxe5 {[%clk 0:01:31.1]} 25. Qxe5 {[%clk
0:01:34.9]} 25... Rde8 {[%clk 0:01:27.7]} 26. Qd4 {[%clk 0:01:31.6]} 26... Qd6
{[%clk 0:01:07.6]} 27. Qxa7+ {[%clk 0:01:27.9]} 27... Kc8 {[%clk 0:01:05.2]} 28.
Qa8+ {[%clk 0:01:23]} 28... Kd7 {[%clk 0:01:04.8]} 29. Rxd6+ {[%clk 0:01:21.3]}
29... Kxd6 {[%clk 0:01:01.6]} 30. Qc6+ {[%clk 0:01:19.4]} 30... Ke7 {[%clk
0:00:59.4]} 31. Qxc7+ {[%clk 0:01:17.3]} 31... Nd7 {[%clk 0:00:58.9]} 32. Ne5
{[%clk 0:01:15.4]} 32... Ke6 {[%clk 0:00:57]} 33. Nxd7 {[%clk 0:01:13.4]} 33...
Rc8 {[%clk 0:00:54.1]} 34. Nc5+ {[%clk 0:01:09.1]} 34... Kf6 {[%clk 0:00:50.4]}
35. Qf4+ {[%clk 0:01:04.9]} 35... Kg6 {[%clk 0:00:49.8]} 36. Nd3 {[%clk
0:00:58.5]} 36... Rcf8 {[%clk 0:00:47.8]} 37. Qd6+ {[%clk 0:00:55.8]} 37... Kh7
{[%clk 0:00:45.2]} 38. Nxd5 {[%clk 0:00:53.8]} 38... Rd8 {[%clk 0:00:44]} 39.
Nf6+ {[%clk 0:00:48.4]} 39... Kh6 {[%clk 0:00:42.2]} 40. Ng4+ {[%clk 0:00:33.4]}
40... Kh7 {[%clk 0:00:41.1]} 41. Nf6+ {[%clk 0:00:19.1]} 41... Kh6 {[%clk
0:00:40.4]} 42. Ng8+ {[%clk 0:00:17.6]} 42... Kh7 {[%clk 0:00:38]} 43. Nf6+
{[%clk 0:00:17.5]} 1/2-1/2

[Event "Betsys MČR v online bleskovém šachu 2021"]
[Site "Chess.com"]
[Date "2021.04.17"]
[Round "9"]
[White "YoungMegaMind"]
[Black "HCMotorCB"]
[Result "0-1"]
[WhiteElo "2220"]
[BlackElo "2386"]
[TimeControl "180+1"]
[EndTime "10:30:15 PDT"]
[Termination "Uživatel HCMotorCB zvítězil po vzdání soupeře"]

1. Nf3 {[%clk 0:03:00.9]} 1... c6 {[%clk 0:02:59.5]} 2. c4 {[%clk 0:02:56.6]}
2... g6 {[%clk 0:02:59.2]} 3. Nc3 {[%clk 0:02:54.5]} 3... Bg7 {[%clk 0:02:59.4]}
4. b3 {[%clk 0:02:54.7]} 4... Nf6 {[%clk 0:02:58.7]} 5. Bb2 {[%clk 0:02:54.9]}
5... O-O {[%clk 0:02:58.9]} 6. e3 {[%clk 0:02:51.2]} 6... d5 {[%clk 0:02:58.9]}
7. d4 {[%clk 0:02:51]} 7... Bg4 {[%clk 0:02:56.8]} 8. Be2 {[%clk 0:02:50.5]}
8... e6 {[%clk 0:02:55.8]} 9. O-O {[%clk 0:02:50.1]} 9... Nbd7 {[%clk 0:02:55]}
10. Nd2 {[%clk 0:02:42.8]} 10... Bxe2 {[%clk 0:02:54.2]} 11. Qxe2 {[%clk
0:02:43.7]} 11... Rc8 {[%clk 0:02:49.4]} 12. b4 {[%clk 0:02:36.4]} 12... dxc4
{[%clk 0:02:44.5]} 13. Nxc4 {[%clk 0:02:35.5]} 13... Nb6 {[%clk 0:02:44.6]} 14.
a4 {[%clk 0:02:30.1]} 14... Nfd5 {[%clk 0:02:41.9]} 15. Nxb6 {[%clk 0:02:24.2]}
15... axb6 {[%clk 0:02:39.5]} 16. Qc4 {[%clk 0:02:19.1]} 16... Ra8 {[%clk
0:02:34.4]} 17. Rfc1 {[%clk 0:02:14.1]} 17... Qe7 {[%clk 0:02:29.8]} 18. Nxd5
{[%clk 0:02:08.4]} 18... exd5 {[%clk 0:02:28.2]} 19. Qb3 {[%clk 0:02:07.4]}
19... Rfc8 {[%clk 0:02:18.9]} 20. Ba3 {[%clk 0:01:56.1]} 20... Qe6 {[%clk
0:02:18.8]} 21. Rab1 {[%clk 0:01:50.7]} 21... Bf8 {[%clk 0:02:04.1]} 22. g3
{[%clk 0:01:38.7]} 22... h5 {[%clk 0:02:01.7]} 23. h4 {[%clk 0:01:28.7]} 23...
Bd6 {[%clk 0:01:55.3]} 24. b5 {[%clk 0:01:07.8]} 24... cxb5 {[%clk 0:01:34]} 25.
Bxd6 {[%clk 0:00:59.8]} 25... Qxd6 {[%clk 0:01:29.4]} 26. Rxc8+ {[%clk
0:00:57.7]} 26... Rxc8 {[%clk 0:01:28.9]} 27. Qxb5 {[%clk 0:00:57.9]} 27... Rc6
{[%clk 0:01:20.9]} 28. Kg2 {[%clk 0:00:53.1]} 28... Qe6 {[%clk 0:01:19.2]} 29.
Kg1 {[%clk 0:00:49.5]} 29... Kg7 {[%clk 0:01:16.7]} 30. a5 {[%clk 0:00:43.5]}
30... bxa5 {[%clk 0:01:13.4]} 31. Qxa5 {[%clk 0:00:43.3]} 31... Qe4 {[%clk
0:01:06.7]} 32. Qa2 {[%clk 0:00:32.5]} 32... g5 {[%clk 0:01:00.7]} 33. hxg5
{[%clk 0:00:26.8]} 33... h4 {[%clk 0:01:00.2]} 34. gxh4 {[%clk 0:00:24.8]} 34...
Rc2 {[%clk 0:00:42.7]} 35. Qb3 {[%clk 0:00:06.7]} 35... Qg4+ {[%clk 0:00:39.6]}
36. Kh1 {[%clk 0:00:04.4]} 36... Qxh4+ {[%clk 0:00:39.3]} 0-1

[Event "Betsys MČR v online bleskovém šachu 2021"]
[Site "Chess.com"]
[Date "2021.04.17"]
[Round "9"]
[White "ReitteN"]
[Black "matej-c"]
[Result "1-0"]
[WhiteElo "1776"]
[BlackElo "1949"]
[TimeControl "180+1"]
[EndTime "10:30:16 PDT"]
[Termination "Uživatel ReitteN zvítězil po vzdání soupeře"]

1. c4 {[%clk 0:03:00.4]} 1... Nf6 {[%clk 0:02:58.9]} 2. Nc3 {[%clk 0:03:00.1]}
2... e5 {[%clk 0:02:59.5]} 3. g3 {[%clk 0:02:58.3]} 3... Bb4 {[%clk 0:02:58.7]}
4. Bg2 {[%clk 0:02:57.4]} 4... Bxc3 {[%clk 0:02:59.1]} 5. bxc3 {[%clk 0:02:57]}
5... d6 {[%clk 0:02:54.7]} 6. d3 {[%clk 0:02:55.1]} 6... O-O {[%clk 0:02:53]} 7.
e4 {[%clk 0:02:51.8]} 7... Nbd7 {[%clk 0:02:52.4]} 8. Ne2 {[%clk 0:02:50.7]}
8... Re8 {[%clk 0:02:52.4]} 9. O-O {[%clk 0:02:50.6]} 9... Nc5 {[%clk
0:02:52.6]} 10. h3 {[%clk 0:02:49.9]} 10... h6 {[%clk 0:02:43.9]} 11. Be3 {[%clk
0:02:49.6]} 11... b6 {[%clk 0:02:41.5]} 12. Bxc5 {[%clk 0:02:46.1]} 12... dxc5
{[%clk 0:02:37.7]} 13. f4 {[%clk 0:02:44.7]} 13... Qe7 {[%clk 0:02:29.1]} 14.
Rb1 {[%clk 0:02:17.3]} 14... Bb7 {[%clk 0:02:27.5]} 15. a4 {[%clk 0:01:55.4]}
15... a5 {[%clk 0:02:27.1]} 16. Kh2 {[%clk 0:01:45.2]} 16... Rad8 {[%clk
0:02:25.4]} 17. Qc2 {[%clk 0:01:41.2]} 17... Rd6 {[%clk 0:02:16.7]} 18. fxe5
{[%clk 0:01:28.4]} 18... Qxe5 {[%clk 0:02:14.8]} 19. Rf5 {[%clk 0:01:28.6]}
19... Qxf5 {[%clk 0:02:03.3]} 20. exf5 {[%clk 0:01:26.8]} 20... Bxg2 {[%clk
0:02:00.4]} 21. Kxg2 {[%clk 0:01:27.7]} 21... Red8 {[%clk 0:01:58.2]} 22. Rd1
{[%clk 0:01:19.9]} 22... Nd7 {[%clk 0:01:57.9]} 23. Nf4 {[%clk 0:01:02.9]} 23...
c6 {[%clk 0:01:57.8]} 24. Qe2 {[%clk 0:00:58.5]} 24... Kf8 {[%clk 0:01:49.3]}
25. Re1 {[%clk 0:00:56.7]} 25... Nf6 {[%clk 0:01:46.7]} 26. g4 {[%clk
0:00:39.1]} 26... Re8 {[%clk 0:01:45.9]} 27. Qf2 {[%clk 0:00:30.6]} 27... Red8
{[%clk 0:01:45.3]} 28. Re5 {[%clk 0:00:20.6]} 28... Nd7 {[%clk 0:01:43.7]} 29.
Re3 {[%clk 0:00:17.2]} 29... Kg8 {[%clk 0:01:42.5]} 30. Qe2 {[%clk 0:00:17.4]}
30... Nf6 {[%clk 0:01:41.3]} 31. Re7 {[%clk 0:00:07.2]} 31... b5 {[%clk
0:01:39.8]} 32. Nh5 {[%clk 0:00:07.1]} 32... Nxh5 {[%clk 0:01:32.5]} 33. gxh5
{[%clk 0:00:08]} 33... Rxd3 {[%clk 0:01:25.9]} 34. Re8+ {[%clk 0:00:08.4]} 34...
Rxe8 {[%clk 0:01:26.3]} 35. Qxe8+ {[%clk 0:00:07.1]} 35... Kh7 {[%clk
0:01:25.6]} 36. cxb5 {[%clk 0:00:05.3]} 36... Rd2+ {[%clk 0:01:24.9]} 37. Kf3
{[%clk 0:00:04.7]} 37... cxb5 {[%clk 0:01:25.8]} 38. Qxb5 {[%clk 0:00:03.2]}
38... Rc2 {[%clk 0:01:25.3]} 39. Qxa5 {[%clk 0:00:01.8]} 39... Rh2 {[%clk
0:01:24.1]} 40. Qxc5 {[%clk 0:00:01.7]} 40... Rxh3+ {[%clk 0:01:23.7]} 41. Kg4
{[%clk 0:00:02.2]} 41... Rh1 {[%clk 0:01:22.4]} 42. Qd5 {[%clk 0:00:01.9]} 42...
Rg1+ {[%clk 0:01:22.2]} 43. Kh3 {[%clk 0:00:02.1]} 43... Rg5 {[%clk 0:01:18]}
44. Qxf7 {[%clk 0:00:01.9]} 44... Rg1 {[%clk 0:01:15.1]} 45. Qg6+ {[%clk
0:00:02.2]} 45... Rxg6 {[%clk 0:01:12.9]} 46. fxg6+ {[%clk 0:00:03.1]} 46... Kg8
{[%clk 0:01:13.3]} 47. a5 {[%clk 0:00:03.8]} 47... Kf8 {[%clk 0:01:14.2]} 48. a6
{[%clk 0:00:04.7]} 48... Ke7 {[%clk 0:01:15]} 49. a7 {[%clk 0:00:05.6]} 49...
Kd6 {[%clk 0:01:15.9]} 50. a8=Q {[%clk 0:00:06]} 50... Kc7 {[%clk 0:01:16.8]}
51. Qe4 {[%clk 0:00:06.2]} 51... Kb6 {[%clk 0:01:16.9]} 52. Qe7 {[%clk
0:00:06.2]} 52... Kc6 {[%clk 0:01:16.8]} 53. Qxg7 {[%clk 0:00:06.6]} 1-0

[Event "Betsys MČR v online bleskovém šachu 2021"]
[Site "Chess.com"]
[Date "2021.04.17"]
[Round "9"]
[White "doktorovak"]
[Black "FaceOfLightning"]
[Result "0-1"]
[WhiteElo "1666"]
[BlackElo "1945"]
[TimeControl "180+1"]
[EndTime "10:30:17 PDT"]
[Termination "Uživatel FaceOfLightning zvítězil na čas"]

1. e4 {[%clk 0:03:00.9]} 1... c5 {[%clk 0:02:57.9]} 2. Nf3 {[%clk 0:03:00.4]}
2... e6 {[%clk 0:02:56.8]} 3. Nc3 {[%clk 0:02:59.3]} 3... Nc6 {[%clk 0:02:55.6]}
4. a3 {[%clk 0:02:57.5]} 4... a6 {[%clk 0:02:54.5]} 5. Bc4 {[%clk 0:02:57.2]}
5... b5 {[%clk 0:02:53.7]} 6. Ba2 {[%clk 0:02:56.7]} 6... Nf6 {[%clk 0:02:52]}
7. d3 {[%clk 0:02:56.8]} 7... Be7 {[%clk 0:02:50.7]} 8. Bg5 {[%clk 0:02:55.8]}
8... h6 {[%clk 0:02:49.6]} 9. Bh4 {[%clk 0:02:55.6]} 9... d6 {[%clk 0:02:38.7]}
10. O-O {[%clk 0:02:46.5]} 10... g5 {[%clk 0:02:33.3]} 11. Bg3 {[%clk
0:02:45.8]} 11... h5 {[%clk 0:02:28.2]} 12. e5 {[%clk 0:02:40.5]} 12... dxe5
{[%clk 0:02:20.7]} 13. Bxe5 {[%clk 0:02:37.6]} 13... g4 {[%clk 0:02:16.1]} 14.
Bxf6 {[%clk 0:02:37.3]} 14... Bxf6 {[%clk 0:02:14.1]} 15. Nd2 {[%clk 0:02:34.7]}
15... Qc7 {[%clk 0:01:41.6]} 16. Nde4 {[%clk 0:02:33.9]} 16... Be5 {[%clk
0:01:38.4]} 17. g3 {[%clk 0:02:31.6]} 17... Nd4 {[%clk 0:01:34.9]} 18. Nd2
{[%clk 0:02:20.4]} 18... Bb7 {[%clk 0:01:32.9]} 19. Nce4 {[%clk 0:01:44.8]}
19... f5 {[%clk 0:01:27.8]} 20. Bxe6 {[%clk 0:01:40.3]} 20... Nxe6 {[%clk
0:01:25.5]} 21. Qe2 {[%clk 0:01:05.4]} 21... Nd4 {[%clk 0:01:08.6]} 22. Qe1
{[%clk 0:00:58.1]} 22... fxe4 {[%clk 0:01:06.3]} 23. dxe4 {[%clk 0:00:55]} 23...
O-O-O {[%clk 0:01:03.5]} 24. c3 {[%clk 0:00:49.8]} 24... Nf3+ {[%clk 0:01:00.1]}
25. Nxf3 {[%clk 0:00:49]} 25... gxf3 {[%clk 0:00:59.7]} 26. Qe3 {[%clk
0:00:48.1]} 26... Rdf8 {[%clk 0:00:54.1]} 27. Rad1 {[%clk 0:00:44.2]} 27... h4
{[%clk 0:00:52.5]} 28. Qg5 {[%clk 0:00:21.2]} 28... hxg3 {[%clk 0:00:49.5]} 29.
Qg4+ {[%clk 0:00:19.2]} 29... Kb8 {[%clk 0:00:45.2]} 30. fxg3 {[%clk 0:00:19.1]}
30... Rhg8 {[%clk 0:00:32.3]} 31. Qh5 {[%clk 0:00:10.6]} 31... Bxg3 {[%clk
0:00:31.2]} 32. Kh1 {[%clk 0:00:07.8]} 32... Bxe4 {[%clk 0:00:28.6]} 0-1

[Event "Betsys MČR v online bleskovém šachu 2021"]
[Site "Chess.com"]
[Date "2021.04.17"]
[Round "9"]
[White "tkokosek007"]
[Black "CzechMerlin"]
[Result "0-1"]
[WhiteElo "1383"]
[BlackElo "1663"]
[TimeControl "180+1"]
[EndTime "10:30:20 PDT"]
[Termination "Uživatel CzechMerlin zvítězil na čas"]

1. b3 {[%clk 0:02:55.3]} 1... e5 {[%clk 0:03:00.2]} 2. Bb2 {[%clk 0:02:52.7]}
2... e4 {[%clk 0:02:58.9]} 3. e3 {[%clk 0:02:50.5]} 3... f5 {[%clk 0:02:59]} 4.
d3 {[%clk 0:02:45]} 4... Nf6 {[%clk 0:02:59.2]} 5. Nd2 {[%clk 0:02:42.4]} 5...
d5 {[%clk 0:02:59.3]} 6. dxe4 {[%clk 0:02:39.6]} 6... fxe4 {[%clk 0:02:56.6]} 7.
c4 {[%clk 0:02:37.4]} 7... c6 {[%clk 0:02:53.6]} 8. cxd5 {[%clk 0:02:33.8]} 8...
cxd5 {[%clk 0:02:54.5]} 9. Ne2 {[%clk 0:02:33.3]} 9... Bb4 {[%clk 0:02:54.8]}
10. Nd4 {[%clk 0:02:27.5]} 10... O-O {[%clk 0:02:51.2]} 11. Be2 {[%clk
0:02:25.5]} 11... Qa5 {[%clk 0:02:46.8]} 12. a3 {[%clk 0:02:07]} 12... Bxd2+
{[%clk 0:02:12.3]} 13. Qxd2 {[%clk 0:02:06.2]} 13... Qxd2+ {[%clk 0:02:12.7]}
14. Kxd2 {[%clk 0:02:06.3]} 14... Nc6 {[%clk 0:02:13.3]} 15. Rac1 {[%clk
0:02:03.8]} 15... Bd7 {[%clk 0:02:09.8]} 16. Bb5 {[%clk 0:01:53.4]} 16... Nxd4
{[%clk 0:02:07.4]} 17. Bxd7 {[%clk 0:01:49.2]} 17... Nxb3+ {[%clk 0:02:06.3]}
18. Kc2 {[%clk 0:01:42.6]} 18... Nxc1 {[%clk 0:02:06.1]} 19. Be6+ {[%clk
0:01:42.4]} 19... Kh8 {[%clk 0:02:04.4]} 20. Rxc1 {[%clk 0:01:41.9]} 20... Rad8
{[%clk 0:01:54.5]} 21. Kd2 {[%clk 0:01:37]} 21... Rd6 {[%clk 0:01:53.6]} 22. Bf5
{[%clk 0:01:25.4]} 22... Rc6 {[%clk 0:01:50.3]} 23. Bc3 {[%clk 0:01:00.3]} 23...
g6 {[%clk 0:01:38]} 24. Bh3 {[%clk 0:00:58.1]} 24... Kg7 {[%clk 0:01:37.1]} 25.
Rb1 {[%clk 0:00:56.5]} 25... b6 {[%clk 0:01:35.3]} 26. a4 {[%clk 0:00:45.9]}
26... Kf7 {[%clk 0:01:34]} 27. a5 {[%clk 0:00:44.9]} 27... g5 {[%clk 0:01:32.6]}
28. g3 {[%clk 0:00:38.9]} 28... g4 {[%clk 0:01:15.4]} 29. Bf1 {[%clk 0:00:36.7]}
29... Nd7 {[%clk 0:01:13.2]} 30. Bb5 {[%clk 0:00:31]} 30... Rc7 {[%clk
0:01:06.1]} 31. axb6 {[%clk 0:00:30]} 31... Nxb6 {[%clk 0:01:04.2]} 32. Ba5
{[%clk 0:00:23.1]} 32... Ke6 {[%clk 0:01:01.2]} 33. Ba6 {[%clk 0:00:21.1]} 33...
Rxf2+ {[%clk 0:00:58.3]} 34. Ke1 {[%clk 0:00:19.7]} 34... Rxh2 {[%clk
0:00:57.1]} 35. Bxb6 {[%clk 0:00:18.8]} 35... axb6 {[%clk 0:00:52]} 36. Rxb6+
{[%clk 0:00:18.6]} 36... Ke5 {[%clk 0:00:45.3]} 37. Be2 {[%clk 0:00:18]} 37...
Rc2 {[%clk 0:00:39.7]} 0-1

[Event "Betsys MČR v online bleskovém šachu 2021"]
[Site "Chess.com"]
[Date "2021.04.17"]
[Round "9"]
[White "phil3"]
[Black "BetsysBetting"]
[Result "0-1"]
[WhiteElo "2120"]
[BlackElo "2028"]
[TimeControl "180+1"]
[EndTime "10:30:22 PDT"]
[Termination "Uživatel BetsysBetting zvítězil na čas"]

1. e4 {[%clk 0:02:40.8]} 1... d6 {[%clk 0:02:52.9]} 2. d4 {[%clk 0:02:40.2]}
2... Nf6 {[%clk 0:02:52.6]} 3. Nc3 {[%clk 0:02:40.4]} 3... c6 {[%clk 0:02:51.5]}
4. f4 {[%clk 0:02:40.4]} 4... Qa5 {[%clk 0:02:49.5]} 5. Bd3 {[%clk 0:02:39.8]}
5... e5 {[%clk 0:02:49.1]} 6. Nf3 {[%clk 0:02:40.4]} 6... Bg4 {[%clk 0:02:48]}
7. Be3 {[%clk 0:02:40.4]} 7... Qb6 {[%clk 0:02:32.3]} 8. fxe5 {[%clk 0:02:25.4]}
8... dxe5 {[%clk 0:02:26.6]} 9. Qd2 {[%clk 0:02:24.6]} 9... Bxf3 {[%clk
0:02:05.8]} 10. dxe5 {[%clk 0:02:16.8]} 10... Bc5 {[%clk 0:01:49.5]} 11. Bxc5
{[%clk 0:02:12.2]} 11... Qxc5 {[%clk 0:01:49.5]} 12. exf6 {[%clk 0:02:09.1]}
12... Bh5 {[%clk 0:01:41.4]} 13. fxg7 {[%clk 0:02:06.7]} 13... Rg8 {[%clk
0:01:39.5]} 14. Qh6 {[%clk 0:01:23]} 14... Nd7 {[%clk 0:01:27]} 15. Rf1 {[%clk
0:00:46.1]} 15... O-O-O {[%clk 0:01:24.7]} 16. Rf5 {[%clk 0:00:43.9]} 16... Qb4
{[%clk 0:00:47]} 17. Qd2 {[%clk 0:00:40.6]} 17... Bg6 {[%clk 0:00:44.4]} 18. a3
{[%clk 0:00:24.1]} 18... Qxb2 {[%clk 0:00:32.2]} 19. Rb1 {[%clk 0:00:23.9]}
19... Qxa3 {[%clk 0:00:32.3]} 20. Rg5 {[%clk 0:00:16.3]} 20... Nc5 {[%clk
0:00:20.1]} 21. Kf1 {[%clk 0:00:12.9]} 21... Bxe4 {[%clk 0:00:05.3]} 22. Rh5
{[%clk 0:00:04]} 22... Nxd3 {[%clk 0:00:03.6]} 23. cxd3 {[%clk 0:00:03]} 23...
Bxd3+ {[%clk 0:00:03.7]} 0-1